[Event "Titled Tuesday Blitz August 17 2021"]
[White "Cunha, Lucas Aguiar"]
[Black "Timmermans, Mark"]
[WhiteFideId "2125404"]
[BlackFideId "1026399"]
[WhiteElo "2361"]
[BlackElo "2460"]
[Result "0-1"]
[Round "04"]
[TimeControl "180+1"]
[Date "2021.08.17"]
[WhiteClock "0:00:26"]
[BlackClock "0:00:31"]

1. e4 {[%clk 0:03:00]}  e5 {[%clk 0:03:00]} 2. Nf3 {[%clk 0:03:00]}  Nc6 {[%clk 0:03:00]} 3. Nc3 {[%clk 0:03:00]}  Nf6 {[%clk 0:03:00]} 4. Bb5 {[%clk 0:03:01]}  Nd4 {[%clk 0:03:00]} 5. Ba4 {[%clk 0:03:01]}  Bc5 {[%clk 0:03:00]} 6. Nxe5 {[%clk 0:03:01]}  O-O {[%clk 0:02:40]} 7. Nd3 {[%clk 0:03:01]}  Bb6 {[%clk 0:02:24]} 8. e5 {[%clk 0:03:01]}  Ne8 {[%clk 0:02:15]} 9. Nd5 {[%clk 0:03:01]}  c6 {[%clk 0:02:03]} 10. Ne3 {[%clk 0:03:00]}  f6 {[%clk 0:01:56]} 11. O-O {[%clk 0:02:59]}  fxe5 {[%clk 0:01:53]} 12. Nxe5 {[%clk 0:03:00]}  Qg5 {[%clk 0:01:44]} 13. N3c4 {[%clk 0:02:27]}  d5 {[%clk 0:01:41]} 14. d3 {[%clk 0:02:20]}  Qf6 {[%clk 0:01:38]} 15. Nxb6 {[%clk 0:02:00]}  axb6 {[%clk 0:01:39]} 16. c3 {[%clk 0:02:01]}  Qxe5 {[%clk 0:01:35]} 17. cxd4 {[%clk 0:02:01]}  Qxd4 {[%clk 0:01:36]} 18. Bb3 {[%clk 0:01:59]}  b5 {[%clk 0:01:30]} 19. Be3 {[%clk 0:01:56]}  Qxb2 {[%clk 0:01:29]} 20. d4 {[%clk 0:01:57]}  Qa3 {[%clk 0:01:26]} 21. Bd2 {[%clk 0:01:44]}  Bf5 {[%clk 0:01:26]} 22. Qe1 {[%clk 0:01:43]}  Qa7 {[%clk 0:01:16]} 23. Bb4 {[%clk 0:01:42]}  Rf6 {[%clk 0:01:16]} 24. Qe5 {[%clk 0:01:38]}  Qb8 {[%clk 0:01:13]} 25. Rfe1 {[%clk 0:01:27]}  Nd6 {[%clk 0:01:12]} 26. f3 {[%clk 0:01:20]}  Nc4 {[%clk 0:01:12]} 27. Qe2 {[%clk 0:01:16]}  Rh6 {[%clk 0:01:05]} 28. g3 {[%clk 0:01:14]}  Re6 {[%clk 0:01:05]} 29. Qf2 {[%clk 0:01:11]}  Qe8 {[%clk 0:01:05]} 30. Rxe6 {[%clk 0:01:11]}  Qxe6 {[%clk 0:01:06]} 31. Re1 {[%clk 0:01:11]}  Qf6 {[%clk 0:01:05]} 32. Re7 {[%clk 0:01:09]}  Nd6 {[%clk 0:01:00]} 33. Qe3 {[%clk 0:01:03]}  Bg6 {[%clk 0:00:56]} 34. Re6 {[%clk 0:01:01]}  Nf5 {[%clk 0:00:57]} 35. Rxf6 {[%clk 0:00:58]}  Nxe3 {[%clk 0:00:57]} 36. Rd6 {[%clk 0:00:56]}  Nf5 {[%clk 0:00:58]} 37. Rd7 {[%clk 0:00:55]}  Nxd4 {[%clk 0:00:57]} 38. Rxb7 {[%clk 0:00:56]}  Nxf3+ {[%clk 0:00:56]} 39. Kg2 {[%clk 0:00:55]}  Nd4 {[%clk 0:00:57]} 40. Bc3 {[%clk 0:00:53]}  Ne6 {[%clk 0:00:56]} 41. Be5 {[%clk 0:00:47]}  Kf8 {[%clk 0:00:51]} 42. Bd6+ {[%clk 0:00:46]}  Kg8 {[%clk 0:00:50]} 43. Be5 {[%clk 0:00:47]}  Be4+ {[%clk 0:00:49]} 44. Kg1 {[%clk 0:00:46]}  c5 {[%clk 0:00:46]} 45. Re7 {[%clk 0:00:44]}  Ra6 {[%clk 0:00:42]} 46. Bd1 {[%clk 0:00:41]}  d4 {[%clk 0:00:41]} 47. Bg4 {[%clk 0:00:36]}  Bd5 {[%clk 0:00:41]} 48. Bh5 {[%clk 0:00:36]}  g6 {[%clk 0:00:35]} 49. Bg4 {[%clk 0:00:34]}  h5 {[%clk 0:00:35]} 50. Bh3 {[%clk 0:00:33]}  Ng5 {[%clk 0:00:33]} 51. Bf1 {[%clk 0:00:31]}  Nf3+ {[%clk 0:00:31]} 52. Kf2 {[%clk 0:00:31]}  Rxa2+ {[%clk 0:00:32]} 53. Be2 {[%clk 0:00:26]}  Nxe5 {[%clk 0:00:31]} 54. Rxe5 {[%clk 0:00:26]}  Bc4 {[%clk 0:00:31]} 0-1


[Site "https://www.chess.com"]

[Event "Titled Tuesday Blitz August 17 2021"]
[White "Dang, Hoang Son"]
[Black "Gupta, Abhijeet"]
[WhiteFideId "12402435"]
[BlackFideId "5010608"]
[WhiteElo "2248"]
[BlackElo "2549"]
[Result "0-1"]
[Round "04"]
[TimeControl "180+1"]
[Date "2021.08.17"]
[WhiteClock "0:00:28"]
[BlackClock "0:00:45"]

1. e4 {[%clk 0:03:00]}  e6 {[%clk 0:02:54]} 2. d4 {[%clk 0:02:59]}  d5 {[%clk 0:02:54]} 3. Nd2 {[%clk 0:03:00]}  c5 {[%clk 0:02:54]} 4. exd5 {[%clk 0:02:59]}  Qxd5 {[%clk 0:02:55]} 5. Ngf3 {[%clk 0:03:00]}  cxd4 {[%clk 0:02:55]} 6. Bc4 {[%clk 0:03:01]}  Qd8 {[%clk 0:02:55]} 7. Nb3 {[%clk 0:03:01]}  Nc6 {[%clk 0:02:54]} 8. Nbxd4 {[%clk 0:03:01]}  Nxd4 {[%clk 0:02:53]} 9. Qxd4 {[%clk 0:03:02]}  Qxd4 {[%clk 0:02:52]} 10. Nxd4 {[%clk 0:03:03]}  a6 {[%clk 0:02:51]} 11. a4 {[%clk 0:03:00]}  Nf6 {[%clk 0:02:49]} 12. Be3 {[%clk 0:02:52]}  Bd7 {[%clk 0:02:48]} 13. a5 {[%clk 0:02:29]}  Rc8 {[%clk 0:02:45]} 14. Bb3 {[%clk 0:02:20]}  Ng4 {[%clk 0:02:33]} 15. Bd2 {[%clk 0:02:20]}  Bc5 {[%clk 0:02:33]} 16. c3 {[%clk 0:02:19]}  e5 {[%clk 0:02:33]} 17. f3 {[%clk 0:02:10]}  exd4 {[%clk 0:02:18]} 18. fxg4 {[%clk 0:02:09]}  O-O {[%clk 0:02:17]} 19. h3 {[%clk 0:01:44]}  Rfe8+ {[%clk 0:02:16]} 20. Kd1 {[%clk 0:01:43]}  Bc6 {[%clk 0:02:16]} 21. Rf1 {[%clk 0:01:41]}  Re7 {[%clk 0:02:11]} 22. Rf5 {[%clk 0:01:40]}  Bxg2 {[%clk 0:01:57]} 23. cxd4 {[%clk 0:01:33]}  Bxd4 {[%clk 0:01:54]} 24. Ra4 {[%clk 0:01:32]}  Rd8 {[%clk 0:01:47]} 25. Kc1 {[%clk 0:01:14]}  Be4 {[%clk 0:01:34]} 26. Rf4 {[%clk 0:00:54]}  g5 {[%clk 0:01:31]} 27. Rxf7 {[%clk 0:00:37]}  Rxf7 {[%clk 0:01:22]} 28. Bxg5 {[%clk 0:00:37]}  Rd7 {[%clk 0:00:58]} 29. Bh6 {[%clk 0:00:37]}  Bd5 {[%clk 0:00:45]} 30. Bxd5 {[%clk 0:00:27]}  Rxd5 {[%clk 0:00:46]} 31. Rc4 {[%clk 0:00:28]}  Rc5 {[%clk 0:00:45]} 0-1


[Site "https://www.chess.com"]

[Event "Titled Tuesday Blitz August 17 2021"]
[White "Espinosa Veloz, Ermes"]
[Black "Moroni, Luca Jr"]
[WhiteFideId "3507424"]
[BlackFideId "865834"]
[WhiteElo "2333"]
[BlackElo "2491"]
[Result "0-1"]
[Round "04"]
[TimeControl "180+1"]
[Date "2021.08.17"]
[WhiteClock "0:00:01"]
[BlackClock "0:00:04"]

1. e4 {[%clk 0:03:00]}  g6 {[%clk 0:03:00]} 2. d4 {[%clk 0:02:59]}  Bg7 {[%clk 0:03:00]} 3. Nc3 {[%clk 0:03:00]}  d6 {[%clk 0:03:01]} 4. Be3 {[%clk 0:02:57]}  Nf6 {[%clk 0:03:01]} 5. Qd2 {[%clk 0:02:54]}  O-O {[%clk 0:02:58]} 6. f3 {[%clk 0:02:53]}  e5 {[%clk 0:02:57]} 7. d5 {[%clk 0:02:48]}  a6 {[%clk 0:02:18]} 8. g4 {[%clk 0:02:37]}  b5 {[%clk 0:02:16]} 9. h4 {[%clk 0:02:36]}  h5 {[%clk 0:02:10]} 10. Bg5 {[%clk 0:02:34]}  Qe8 {[%clk 0:01:56]} 11. Bxf6 {[%clk 0:02:30]}  Bxf6 {[%clk 0:01:57]} 12. gxh5 {[%clk 0:02:29]}  gxh5 {[%clk 0:01:58]} 13. O-O-O {[%clk 0:02:13]}  Bg7 {[%clk 0:01:53]} 14. Nh3 {[%clk 0:02:07]}  f6 {[%clk 0:01:50]} 15. Rg1 {[%clk 0:02:05]}  Kh7 {[%clk 0:01:50]} 16. Rg3 {[%clk 0:01:57]}  Bh6 {[%clk 0:01:37]} 17. Ng5+ {[%clk 0:01:56]}  fxg5 {[%clk 0:01:36]} 18. hxg5 {[%clk 0:01:57]}  Qg6 {[%clk 0:01:30]} 19. Bd3 {[%clk 0:01:47]}  h4 {[%clk 0:01:10]} 20. Rgg1 {[%clk 0:01:40]}  Nd7 {[%clk 0:00:57]} 21. gxh6 {[%clk 0:01:37]}  Qxh6 {[%clk 0:00:53]} 22. Rh1 {[%clk 0:01:34]}  Qxd2+ {[%clk 0:00:44]} 23. Rxd2 {[%clk 0:01:32]}  Nf6 {[%clk 0:00:44]} 24. Rxh4+ {[%clk 0:01:31]}  Kg7 {[%clk 0:00:44]} 25. Rg2+ {[%clk 0:01:30]}  Kf7 {[%clk 0:00:44]} 26. f4 {[%clk 0:01:29]}  exf4 {[%clk 0:00:42]} 27. Rxf4 {[%clk 0:01:29]}  Bd7 {[%clk 0:00:41]} 28. e5 {[%clk 0:00:53]}  dxe5 {[%clk 0:00:40]} 29. Rff2 {[%clk 0:00:53]}  Ke8 {[%clk 0:00:20]} 30. Rg5 {[%clk 0:00:33]}  Ng4 {[%clk 0:00:13]} 31. Rxf8+ {[%clk 0:00:32]}  Kxf8 {[%clk 0:00:13]} 32. Be2 {[%clk 0:00:32]}  Nf6 {[%clk 0:00:13]} 33. Rxe5 {[%clk 0:00:32]}  Kf7 {[%clk 0:00:13]} 34. Kd2 {[%clk 0:00:31]}  Rh8 {[%clk 0:00:13]} 35. Ke3 {[%clk 0:00:24]}  Rh3+ {[%clk 0:00:12]} 36. Kd2 {[%clk 0:00:22]}  Rh2 {[%clk 0:00:12]} 37. Nd1 {[%clk 0:00:21]}  Bg4 {[%clk 0:00:10]} 38. Kd3 {[%clk 0:00:20]}  Bxe2+ {[%clk 0:00:04]} 39. Rxe2 {[%clk 0:00:18]}  Rxe2 {[%clk 0:00:05]} 40. Kxe2 {[%clk 0:00:19]}  Nxd5 {[%clk 0:00:05]} 41. Ne3 {[%clk 0:00:17]}  Nf4+ {[%clk 0:00:05]} 42. Kf3 {[%clk 0:00:15]}  Ne6 {[%clk 0:00:05]} 43. Ke4 {[%clk 0:00:15]}  Ke7 {[%clk 0:00:06]} 44. Kd5 {[%clk 0:00:13]}  Kd7 {[%clk 0:00:05]} 45. Nf5 {[%clk 0:00:13]}  c6+ {[%clk 0:00:05]} 46. Ke5 {[%clk 0:00:13]}  Nc5 {[%clk 0:00:05]} 47. b4 {[%clk 0:00:12]}  Na4 {[%clk 0:00:05]} 48. Ne3 {[%clk 0:00:09]}  Nc3 {[%clk 0:00:05]} 49. a3 {[%clk 0:00:08]}  Nb1 {[%clk 0:00:05]} 50. Kd4 {[%clk 0:00:08]}  Kd6 {[%clk 0:00:04]} 51. Nf5+ {[%clk 0:00:06]}  Kc7 {[%clk 0:00:04]} 52. Ne3 {[%clk 0:00:07]}  Nxa3 {[%clk 0:00:04]} 53. Kc3 {[%clk 0:00:07]}  Nb1+ {[%clk 0:00:04]} 54. Kb2 {[%clk 0:00:06]}  Nd2 {[%clk 0:00:03]} 55. Kc3 {[%clk 0:00:07]}  Ne4+ {[%clk 0:00:04]} 56. Kd4 {[%clk 0:00:07]}  Nd6 {[%clk 0:00:04]} 57. Kc5 {[%clk 0:00:07]}  Nb7+ {[%clk 0:00:04]} 58. Kd4 {[%clk 0:00:05]}  Kb6 {[%clk 0:00:05]} 59. Nf5 {[%clk 0:00:02]}  Kc7 {[%clk 0:00:03]} 60. Ne3 {[%clk 0:00:02]}  Kd6 {[%clk 0:00:02]} 61. Nf5+ {[%clk 0:00:02]}  Kd7 {[%clk 0:00:03]} 62. Ne3 {[%clk 0:00:01]}  Nd6 {[%clk 0:00:03]} 63. Nf5 {[%clk 0:00:01]}  Nxf5+ {[%clk 0:00:03]} 64. Kc5 {[%clk 0:00:02]}  Kc7 {[%clk 0:00:03]} 65. c4 {[%clk 0:00:01]}  bxc4 {[%clk 0:00:04]} 0-1


[Site "https://www.chess.com"]

[Event "Titled Tuesday Blitz August 17 2021"]
[White "Ezat, Mohamed"]
[Black "Mogirzan, Matei-Valeriu"]
[WhiteFideId "10600906"]
[BlackFideId "1257455"]
[WhiteElo "2414"]
[BlackElo "1733"]
[Result "0-1"]
[Round "04"]
[TimeControl "180+1"]
[Date "2021.08.18"]
[WhiteClock "0:00:04"]
[BlackClock "0:00:02"]

1. d4 {[%clk 0:03:00]}  c5 {[%clk 0:02:58]} 2. d5 {[%clk 0:03:00]}  Nf6 {[%clk 0:02:55]} 3. c4 {[%clk 0:03:00]}  d6 {[%clk 0:02:53]} 4. Nc3 {[%clk 0:03:00]}  g6 {[%clk 0:02:53]} 5. e4 {[%clk 0:03:01]}  Bg7 {[%clk 0:02:54]} 6. Be2 {[%clk 0:03:01]}  O-O {[%clk 0:02:54]} 7. Bg5 {[%clk 0:03:01]}  Qa5 {[%clk 0:02:51]} 8. Qd2 {[%clk 0:03:00]}  a6 {[%clk 0:02:49]} 9. a4 {[%clk 0:02:57]}  Bd7 {[%clk 0:02:35]} 10. Ra3 {[%clk 0:02:54]}  e6 {[%clk 0:02:23]} 11. Nf3 {[%clk 0:02:51]}  Re8 {[%clk 0:02:06]} 12. O-O {[%clk 0:02:45]}  e5 {[%clk 0:01:57]} 13. Ne1 {[%clk 0:02:30]}  Bc8 {[%clk 0:01:47]} 14. f4 {[%clk 0:02:25]}  exf4 {[%clk 0:01:38]} 15. Bxf4 {[%clk 0:02:21]}  Qc7 {[%clk 0:01:35]} 16. Nd3 {[%clk 0:02:12]}  Nxe4 {[%clk 0:01:29]} 17. Nxe4 {[%clk 0:02:11]}  Rxe4 {[%clk 0:01:30]} 18. b3 {[%clk 0:02:04]}  Nd7 {[%clk 0:01:16]} 19. Bf3 {[%clk 0:02:02]}  Re8 {[%clk 0:01:11]} 20. Kh1 {[%clk 0:01:56]}  Ne5 {[%clk 0:01:08]} 21. Be2 {[%clk 0:01:54]}  Bf5 {[%clk 0:01:03]} 22. Nxe5 {[%clk 0:01:46]}  Bxe5 {[%clk 0:01:01]} 23. Bh6 {[%clk 0:01:45]}  Qe7 {[%clk 0:00:56]} 24. Bg5 {[%clk 0:01:12]}  f6 {[%clk 0:00:32]} 25. Bh6 {[%clk 0:01:09]}  Bd4 {[%clk 0:00:29]} 26. Bf3 {[%clk 0:00:51]}  Be3 {[%clk 0:00:27]} 27. Bxe3 {[%clk 0:00:51]}  Qxe3 {[%clk 0:00:28]} 28. Qa5 {[%clk 0:00:48]}  Bd3 {[%clk 0:00:15]} 29. Rg1 {[%clk 0:00:47]}  Be4 {[%clk 0:00:12]} 30. Bxe4 {[%clk 0:00:41]}  Rxe4 {[%clk 0:00:13]} 31. Qc7 {[%clk 0:00:37]}  Rae8 {[%clk 0:00:07]} 32. Qxd6 {[%clk 0:00:36]}  Rf4 {[%clk 0:00:02]} 33. Raa1 {[%clk 0:00:32]}  Qf2 {[%clk 0:00:02]} 34. h3 {[%clk 0:00:27]}  Re5 {[%clk 0:00:02]} 35. Qd8+ {[%clk 0:00:04]}  Kg7 {[%clk 0:00:02]} 0-1


[Site "https://www.chess.com"]

[Event "Titled Tuesday Blitz August 17 2021"]
[White "Fernandez Hernandez, Arturo A."]
[Black "Mirzoev, Azer"]
[WhiteFideId "3509230"]
[BlackFideId "13400304"]
[WhiteElo "2400"]
[BlackElo "2525"]
[Result "0-1"]
[Round "04"]
[TimeControl "180+1"]
[Date "2021.08.17"]
[WhiteClock "0:00:05"]
[BlackClock "0:00:11"]

1. e4 {[%clk 0:03:00]}  c6 {[%clk 0:02:59]} 2. Nc3 {[%clk 0:02:59]}  d5 {[%clk 0:03:00]} 3. Nf3 {[%clk 0:02:59]}  Nf6 {[%clk 0:02:58]} 4. Qe2 {[%clk 0:02:53]}  d4 {[%clk 0:02:51]} 5. e5 {[%clk 0:02:48]}  dxc3 {[%clk 0:02:50]} 6. exf6 {[%clk 0:02:48]}  cxb2 {[%clk 0:01:44]} 7. Bxb2 {[%clk 0:02:47]}  gxf6 {[%clk 0:01:44]} 8. Bxf6 {[%clk 0:02:41]}  Rg8 {[%clk 0:01:44]} 9. g3 {[%clk 0:02:41]}  Bg4 {[%clk 0:01:39]} 10. Bg2 {[%clk 0:02:38]}  Rg6 {[%clk 0:01:22]} 11. Be5 {[%clk 0:02:25]}  Nd7 {[%clk 0:01:20]} 12. Bf4 {[%clk 0:02:13]}  Re6 {[%clk 0:01:04]} 13. Be3 {[%clk 0:02:13]}  Ne5 {[%clk 0:01:05]} 14. h3 {[%clk 0:02:13]}  Bh5 {[%clk 0:00:50]} 15. O-O {[%clk 0:01:58]}  Nxf3+ {[%clk 0:00:28]} 16. Bxf3 {[%clk 0:01:57]}  Bxf3 {[%clk 0:00:28]} 17. Qxf3 {[%clk 0:01:57]}  Qd5 {[%clk 0:00:21]} 18. Qxd5 {[%clk 0:01:56]}  cxd5 {[%clk 0:00:21]} 19. Rab1 {[%clk 0:01:57]}  b6 {[%clk 0:00:21]} 20. Rb5 {[%clk 0:01:55]}  Rd6 {[%clk 0:00:20]} 21. Bf4 {[%clk 0:01:51]}  Rd7 {[%clk 0:00:19]} 22. Re1 {[%clk 0:01:47]}  f6 {[%clk 0:00:19]} 23. c3 {[%clk 0:01:12]}  Kf7 {[%clk 0:00:18]} 24. g4 {[%clk 0:01:08]}  Rc8 {[%clk 0:00:18]} 25. Kf1 {[%clk 0:00:56]}  Rc4 {[%clk 0:00:17]} 26. Be3 {[%clk 0:00:52]}  Ra4 {[%clk 0:00:17]} 27. Rb2 {[%clk 0:00:51]}  e5 {[%clk 0:00:17]} 28. Ke2 {[%clk 0:00:47]}  h5 {[%clk 0:00:16]} 29. f3 {[%clk 0:00:47]}  hxg4 {[%clk 0:00:15]} 30. hxg4 {[%clk 0:00:47]}  d4 {[%clk 0:00:15]} 31. cxd4 {[%clk 0:00:44]}  exd4 {[%clk 0:00:15]} 32. Bf2 {[%clk 0:00:43]}  Ba3 {[%clk 0:00:15]} 33. Rb3 {[%clk 0:00:41]}  Bc5 {[%clk 0:00:14]} 34. a3 {[%clk 0:00:33]}  Rxa3 {[%clk 0:00:13]} 35. Rxa3 {[%clk 0:00:31]}  Bxa3 {[%clk 0:00:14]} 36. Kd3 {[%clk 0:00:31]}  Bc5 {[%clk 0:00:15]} 37. Kc4 {[%clk 0:00:28]}  a5 {[%clk 0:00:14]} 38. d3 {[%clk 0:00:28]}  a4 {[%clk 0:00:14]} 39. Rh1 {[%clk 0:00:26]}  Ke6 {[%clk 0:00:14]} 40. f4 {[%clk 0:00:26]}  a3 {[%clk 0:00:14]} 41. f5+ {[%clk 0:00:25]}  Kd6 {[%clk 0:00:14]} 42. Kb3 {[%clk 0:00:23]}  Kc6 {[%clk 0:00:14]} 43. Rh6 {[%clk 0:00:22]}  Kb5 {[%clk 0:00:13]} 44. Rxf6 {[%clk 0:00:22]}  Rh7 {[%clk 0:00:12]} 45. Rg6 {[%clk 0:00:14]}  Rh3 {[%clk 0:00:12]} 46. Rg8 {[%clk 0:00:11]}  Rxd3+ {[%clk 0:00:11]} 47. Ka2 {[%clk 0:00:08]}  Rd2+ {[%clk 0:00:11]} 48. Ka1 {[%clk 0:00:08]}  Rxf2 {[%clk 0:00:12]} 49. Rd8 {[%clk 0:00:05]}  Bb4 {[%clk 0:00:11]} 0-1


[Site "https://www.chess.com"]

[Event "Titled Tuesday Blitz August 17 2021"]
[White "Garriga Cazorla, Pere"]
[Black "Wachinger, Guenther"]
[WhiteFideId "32011601"]
[BlackFideId "4604261"]
[WhiteElo "2430"]
[BlackElo "2212"]
[Result "1-0"]
[Round "04"]
[TimeControl "180+1"]
[Date "2021.08.17"]
[WhiteClock "0:01:54"]
[BlackClock "0:00:29"]

1. d4 {[%clk 0:03:00]}  d5 {[%clk 0:02:58]} 2. c4 {[%clk 0:03:00]}  e6 {[%clk 0:02:58]} 3. Nc3 {[%clk 0:02:59]}  c6 {[%clk 0:02:59]} 4. Nf3 {[%clk 0:02:59]}  dxc4 {[%clk 0:02:59]} 5. e3 {[%clk 0:02:59]}  b5 {[%clk 0:02:59]} 6. a4 {[%clk 0:02:59]}  Bb4 {[%clk 0:02:59]} 7. axb5 {[%clk 0:02:59]}  cxb5 {[%clk 0:02:53]} 8. Bd2 {[%clk 0:02:59]}  Bxc3 {[%clk 0:02:27]} 9. Bxc3 {[%clk 0:03:00]}  a5 {[%clk 0:02:27]} 10. b3 {[%clk 0:02:59]}  Bb7 {[%clk 0:02:23]} 11. bxc4 {[%clk 0:03:00]}  b4 {[%clk 0:02:23]} 12. Bb2 {[%clk 0:02:59]}  Nf6 {[%clk 0:02:24]} 13. Bd3 {[%clk 0:02:58]}  Nbd7 {[%clk 0:02:24]} 14. O-O {[%clk 0:02:57]}  O-O {[%clk 0:02:24]} 15. Nd2 {[%clk 0:02:57]}  Qc7 {[%clk 0:02:23]} 16. f4 {[%clk 0:02:57]}  a4 {[%clk 0:02:24]} 17. Rb1 {[%clk 0:02:57]}  Qd6 {[%clk 0:02:21]} 18. Qe2 {[%clk 0:02:55]}  Rfd8 {[%clk 0:02:21]} 19. e4 {[%clk 0:02:43]}  Nc5 {[%clk 0:02:21]} 20. e5 {[%clk 0:02:43]}  Qc6 {[%clk 0:02:19]} 21. exf6 {[%clk 0:02:38]}  Nxd3 {[%clk 0:02:18]} 22. Ba1 {[%clk 0:02:33]}  b3 {[%clk 0:02:01]} 23. Qg4 {[%clk 0:02:06]}  g6 {[%clk 0:01:50]} 24. Rf3 {[%clk 0:02:04]}  Nc5 {[%clk 0:00:56]} 25. Qg5 {[%clk 0:01:58]}  Ne4 {[%clk 0:00:39]} 26. Nxe4 {[%clk 0:01:55]}  Qxe4 {[%clk 0:00:40]} 27. Qh6 {[%clk 0:01:55]}  Qxb1+ {[%clk 0:00:29]} 28. Rf1 {[%clk 0:01:54]} 1-0


[Site "https://www.chess.com"]

[Event "Titled Tuesday Blitz August 17 2021"]
[White "Gerzhoy, Leonid"]
[Black "Fier, Alexandr"]
[WhiteFideId "2806126"]
[BlackFideId "2107139"]
[WhiteElo "2536"]
[BlackElo "2569"]
[Result "1-0"]
[Round "04"]
[TimeControl "180+1"]
[Date "2021.08.17"]
[WhiteClock "0:01:45"]
[BlackClock "0:01:56"]

1. d4 {[%clk 0:03:00]}  Nf6 {[%clk 0:02:59]} 2. Nf3 {[%clk 0:02:59]}  c5 {[%clk 0:02:58]} 3. c3 {[%clk 0:02:59]}  e6 {[%clk 0:02:56]} 4. e3 {[%clk 0:02:58]}  Nc6 {[%clk 0:02:55]} 5. Nbd2 {[%clk 0:02:58]}  d5 {[%clk 0:02:55]} 6. Bd3 {[%clk 0:02:58]}  Qc7 {[%clk 0:02:51]} 7. O-O {[%clk 0:02:57]}  cxd4 {[%clk 0:02:41]} 8. exd4 {[%clk 0:02:54]}  Bd6 {[%clk 0:02:42]} 9. Re1 {[%clk 0:02:52]}  O-O {[%clk 0:02:42]} 10. Nf1 {[%clk 0:02:51]}  b6 {[%clk 0:02:41]} 11. Bg5 {[%clk 0:02:43]}  Nd7 {[%clk 0:02:39]} 12. Bh4 {[%clk 0:02:40]}  a5 {[%clk 0:02:36]} 13. Bg3 {[%clk 0:02:38]}  Ba6 {[%clk 0:02:36]} 14. Bxd6 {[%clk 0:02:33]}  Qxd6 {[%clk 0:02:36]} 15. Ng3 {[%clk 0:02:30]}  b5 {[%clk 0:02:34]} 16. Ng5 {[%clk 0:02:23]}  g6 {[%clk 0:02:27]} 17. Qg4 {[%clk 0:02:16]}  Rfe8 {[%clk 0:02:11]} 18. Qh4 {[%clk 0:02:01]}  Nf8 {[%clk 0:02:10]} 19. Qh6 {[%clk 0:01:57]}  e5 {[%clk 0:01:56]} 20. Nh5 {[%clk 0:01:45]} 1-0


[Site "https://www.chess.com"]

[Event "Titled Tuesday Blitz August 17 2021"]
[White "Hansch, Stephan"]
[Black "Nguyen, Hong Anh"]
[WhiteFideId "24692514"]
[BlackFideId "12406732"]
[WhiteElo "2053"]
[BlackElo "1974"]
[Result "1/2-1/2"]
[Round "04"]
[TimeControl "180+1"]
[Date "2021.08.18"]
[WhiteClock "0:00:18"]
[BlackClock "0:00:23"]

1. d4 {[%clk 0:03:00]}  Nf6 {[%clk 0:02:57]} 2. c4 {[%clk 0:03:00]}  g6 {[%clk 0:02:56]} 3. g3 {[%clk 0:03:00]}  Bg7 {[%clk 0:02:56]} 4. Bg2 {[%clk 0:03:00]}  d5 {[%clk 0:02:56]} 5. Nc3 {[%clk 0:02:58]}  dxc4 {[%clk 0:02:54]} 6. Nf3 {[%clk 0:02:56]}  O-O {[%clk 0:02:53]} 7. O-O {[%clk 0:02:55]}  Na6 {[%clk 0:02:42]} 8. e4 {[%clk 0:02:53]}  c5 {[%clk 0:02:17]} 9. d5 {[%clk 0:02:51]}  e6 {[%clk 0:02:16]} 10. d6 {[%clk 0:02:30]}  Nb4 {[%clk 0:02:09]} 11. e5 {[%clk 0:02:22]}  Nfd5 {[%clk 0:02:08]} 12. Ne4 {[%clk 0:02:06]}  Nc6 {[%clk 0:02:05]} 13. Bg5 {[%clk 0:02:03]}  Qb6 {[%clk 0:01:39]} 14. Nf6+ {[%clk 0:01:58]}  Bxf6 {[%clk 0:01:32]} 15. Bxf6 {[%clk 0:01:57]}  Nxf6 {[%clk 0:01:26]} 16. exf6 {[%clk 0:01:55]}  Qd8 {[%clk 0:01:18]} 17. g4 {[%clk 0:01:35]}  Qxf6 {[%clk 0:01:12]} 18. d7 {[%clk 0:01:34]}  Qxb2 {[%clk 0:01:02]} 19. Rb1 {[%clk 0:01:31]}  Qf6 {[%clk 0:00:57]} 20. dxc8=Q {[%clk 0:01:29]}  Raxc8 {[%clk 0:00:57]} 21. Rxb7 {[%clk 0:01:29]}  Qf4 {[%clk 0:00:52]} 22. g5 {[%clk 0:01:24]}  Nd4 {[%clk 0:00:47]} 23. Rd7 {[%clk 0:01:12]}  Nxf3+ {[%clk 0:00:44]} 24. Qxf3 {[%clk 0:01:11]}  Qxg5 {[%clk 0:00:44]} 25. Qb7 {[%clk 0:01:06]}  Rcd8 {[%clk 0:00:37]} 26. Qxa7 {[%clk 0:01:01]}  c3 {[%clk 0:00:36]} 27. h4 {[%clk 0:00:43]}  Qxh4 {[%clk 0:00:31]} 28. Rxd8 {[%clk 0:00:42]}  Rxd8 {[%clk 0:00:29]} 29. Qxc5 {[%clk 0:00:43]}  Qa4 {[%clk 0:00:25]} 30. Qxc3 {[%clk 0:00:40]}  Qxa2 {[%clk 0:00:24]} 31. Qf6 {[%clk 0:00:38]}  Qd2 {[%clk 0:00:23]} 32. Qf3 {[%clk 0:00:34]}  Qd4 {[%clk 0:00:21]} 33. Qe4 {[%clk 0:00:33]}  Qxe4 {[%clk 0:00:21]} 34. Bxe4 {[%clk 0:00:33]}  Rd4 {[%clk 0:00:22]} 35. Bg2 {[%clk 0:00:33]}  Kg7 {[%clk 0:00:22]} 36. Ra1 {[%clk 0:00:33]}  h5 {[%clk 0:00:22]} 37. Ra3 {[%clk 0:00:33]}  g5 {[%clk 0:00:22]} 38. Kh2 {[%clk 0:00:33]}  Kg6 {[%clk 0:00:23]} 39. Kg1 {[%clk 0:00:32]}  f5 {[%clk 0:00:23]} 40. Ra6 {[%clk 0:00:32]}  Kf6 {[%clk 0:00:24]} 41. Ra8 {[%clk 0:00:31]}  g4 {[%clk 0:00:24]} 42. Rh8 {[%clk 0:00:31]}  Kg5 {[%clk 0:00:24]} 43. Rg8+ {[%clk 0:00:31]}  Kf4 {[%clk 0:00:23]} 44. Rh8 {[%clk 0:00:30]}  Kg5 {[%clk 0:00:20]} 45. Rg8+ {[%clk 0:00:29]}  Kh4 {[%clk 0:00:21]} 46. Re8 {[%clk 0:00:27]}  Rd6 {[%clk 0:00:20]} 47. Re7 {[%clk 0:00:24]}  f4 {[%clk 0:00:19]} 48. Rf7 {[%clk 0:00:23]}  f3 {[%clk 0:00:20]} 49. Bf1 {[%clk 0:00:23]}  e5 {[%clk 0:00:20]} 50. Re7 {[%clk 0:00:23]}  Rd5 {[%clk 0:00:20]} 51. Re8 {[%clk 0:00:23]}  Kg5 {[%clk 0:00:20]} 52. Rg8+ {[%clk 0:00:23]}  Kf4 {[%clk 0:00:21]} 53. Rh8 {[%clk 0:00:23]}  e4 {[%clk 0:00:20]} 54. Rf8+ {[%clk 0:00:21]}  Ke5 {[%clk 0:00:19]} 55. Rh8 {[%clk 0:00:19]}  Kd4 {[%clk 0:00:19]} 56. Kh2 {[%clk 0:00:20]}  e3 {[%clk 0:00:20]} 57. fxe3+ {[%clk 0:00:19]}  Kxe3 {[%clk 0:00:20]} 58. Kg3 {[%clk 0:00:19]}  Rd1 {[%clk 0:00:20]} 59. Re8+ {[%clk 0:00:18]}  Kd2 {[%clk 0:00:21]} 60. Rd8+ {[%clk 0:00:19]}  Ke1 {[%clk 0:00:21]} 61. Rxd1+ {[%clk 0:00:16]}  Kxd1 {[%clk 0:00:22]} 62. Kf2 {[%clk 0:00:16]}  Kd2 {[%clk 0:00:22]} 63. Bb5 {[%clk 0:00:16]}  h4 {[%clk 0:00:22]} 64. Bc6 {[%clk 0:00:16]}  Kd3 {[%clk 0:00:21]} 65. Bd7 {[%clk 0:00:16]}  g3+ {[%clk 0:00:21]} 66. Kxf3 {[%clk 0:00:17]}  Kd2 {[%clk 0:00:22]} 67. Kg2 {[%clk 0:00:17]}  Ke1 {[%clk 0:00:22]} 68. Bc6 {[%clk 0:00:18]}  Ke2 {[%clk 0:00:23]} 69. Kh3 {[%clk 0:00:17]}  Kf2 {[%clk 0:00:23]} 70. Kxh4 {[%clk 0:00:17]}  g2 {[%clk 0:00:23]} 71. Bxg2 {[%clk 0:00:18]} 1/2-1/2


[Site "https://www.chess.com"]